Workbook

Sheet TowerConfig
A1: ID | B1: name | D1: massge | E1: towerinfoIdGroup
A2: int | B2: int | D2: int | E2: int
A4: modelID | B4: 塔名称 | E4: 塔的详情效果Id组
A5: 1 | C5: 命运峰 | E5: 1

Sheet TowerInfoConfig
A1: ID | B1: groupId | C1: level | D1: name | F1: massge | G1: towerType | H1: typeValue | I1: reward | J1: unlockValue
A2: int | B2: int | C2: int | D2: int | F2: int | G2: int | H2: int[] | I2: int[] | J2: int
A4: modelID | B4: id组 | C4: 层 | G4: 1=战斗（levelbattleId） 2=剧情（剧情事件ID） | I4: 奖励 | J4: 解锁值 | K4: 道具1 | L4: 道具2 | M4: 数量1 | N4: 数量2 | O4: 等级 | Q4: 组合1 | R4: 组合2
A5: 1 | B5: 1 | C5: 1 | E5: 第1层 | G5: 1 | H5: 2001 | I5: =CONCATENATE(L5,";",K5) -> 1402;1001 | K5: 1001 | L5: 1402 | M5: =ROUND(VLOOKUP(O5,[1]ResourceLevelConfig!$A:$C,3,FALSE)*0.01,0)*300 -> 36300 | N5: =IF(L5>1400,1,VLOOKUP(O5,[1]ResourceLevelConfig!$A:$E,L5-998,FALSE)*2) -> 1 | O5: 20 | Q5: =_xlfn.TEXTJOIN(";",1,K5:L5) -> 1001;1402 | R5: =_xlfn.TEXTJOIN(";",1,M5:N5) -> 36300;1 | T5: =VLOOKUP(K5,[2]ItemConfig!$A:$C,3,FALSE)&"×"&M5 -> 灵石×36300 | U5: =VLOOKUP(L5,[2]ItemConfig!$A:$C,3,FALSE)&"×"&N5 -> 良品增元丹×1
A6: 2 | B6: 1 | C6: 2 | E6: 第2层 | G6: 1 | H6: 2002 | I6: =CONCATENATE(L6,";",K6) -> 1702;1001 | K6: 1001 | L6: 1702 | M6: =ROUND(VLOOKUP(O6,[1]ResourceLevelConfig!$A:$C,3,FALSE)*0.01,0)*300 -> 37500 | N6: =IF(L6>1400,1,VLOOKUP(O6,[1]ResourceLevelConfig!$A:$E,L6-998,FALSE)*2) -> 1 | O6: 23 | Q6: =_xlfn.TEXTJOIN(";",1,K6:L6) -> 1001;1702 | R6: =_xlfn.TEXTJOIN(";",1,M6:N6) -> 37500;1 | T6: =VLOOKUP(K6,[2]ItemConfig!$A:$C,3,FALSE)&"×"&M6 -> 灵石×37500 | U6: =VLOOKUP(L6,[2]ItemConfig!$A:$C,3,FALSE)&"×"&N6 -> 归识还元丹×1
A7: 3 | B7: 1 | C7: 3 | E7: 第3层 | G7: 1 | H7: 2003 | I7: 21012;1001 | K7: 1001 | L7: 21012 | M7: =ROUND(VLOOKUP(O7,[1]ResourceLevelConfig!$A:$C,3,FALSE)*0.01,0)*300 -> 38400 | N7: =IF(L7>1400,1,VLOOKUP(O7,[1]ResourceLevelConfig!$A:$E,L7-998,FALSE)*2) -> 1 | O7: 26 | Q7: 1001;21012 | R7: 38400;1 | T7: =VLOOKUP(K7,[2]ItemConfig!$A:$C,3,FALSE)&"×"&M7 -> 灵石×38400 | U7: =VLOOKUP(L7,[2]ItemConfig!$A:$C,3,FALSE)&"×"&N7 -> 紫色神识符×1
A8: 4 | B8: 1 | C8: 4 | E8: 第4层 | G8: 1 | H8: 2004 | I8: 1402;1001 | K8: 1001 | L8: 1402 | M8: =ROUND(VLOOKUP(O8,[1]ResourceLevelConfig!$A:$C,3,FALSE)*0.01,0)*300 -> 39600 | N8: =IF(L8>1400,1,VLOOKUP(O8,[1]ResourceLevelConfig!$A:$E,L8-998,FALSE)*2) -> 1 | O8: 29 | Q8: 1001;1402 | R8: 39600;1 | T8: =VLOOKUP(K8,[2]ItemConfig!$A:$C,3,FALSE)&"×"&M8 -> 灵石×39600 | U8: =VLOOKUP(L8,[2]ItemConfig!$A:$C,3,FALSE)&"×"&N8 -> 良品增元丹×1
A9: 5 | B9: 1 | C9: 5 | E9: 第5层 | G9: 1 | H9: 2005 | I9: 1702;1001 | K9: 1001 | L9: 1702 | M9: =ROUND(VLOOKUP(O9,[1]ResourceLevelConfig!$A:$C,3,FALSE)*0.01,0)*300 -> 40800 | N9: =IF(L9>1400,1,VLOOKUP(O9,[1]ResourceLevelConfig!$A:$E,L9-998,FALSE)*2) -> 1 | O9: 32 | Q9: 1001;1702 | R9: 40800;1 | T9: =VLOOKUP(K9,[2]ItemConfig!$A:$C,3,FALSE)&"×"&M9 -> 灵石×40800 | U9: =VLOOKUP(L9,[2]ItemConfig!$A:$C,3,FALSE)&"×"&N9 -> 归识还元丹×1
A10: 6 | B10: 1 | C10: 6 | E10: 第6层 | G10: 1 | H10: 2006 | I10: 21012;1001 | K10: 1001 | L10: 21012 | M10: =ROUND(VLOOKUP(O10,[1]ResourceLevelConfig!$A:$C,3,FALSE)*0.01,0)*300 -> 42300 | N10: =IF(L10>1400,1,VLOOKUP(O10,[1]ResourceLevelConfig!$A:$E,L10-998,FALSE)*2) -> 1 | O10: 35 | Q10: 1001;21012 | R10: 42300;1 | T10: =VLOOKUP(K10,[2]ItemConfig!$A:$C,3,FALSE)&"×"&M10 -> 灵石×42300 | U10: =VLOOKUP(L10,[2]ItemConfig!$A:$C,3,FALSE)&"×"&N10 -> 紫色神识符×1
A11: 7 | B11: 1 | C11: 7 | E11: 第7层 | G11: 1 | H11: 2007 | I11: 1402;1001 | K11: 1001 | L11: 1402 | M11: =ROUND(VLOOKUP(O11,[1]ResourceLevelConfig!$A:$C,3,FALSE)*0.01,0)*300 -> 43500 | N11: =IF(L11>1400,1,VLOOKUP(O11,[1]ResourceLevelConfig!$A:$E,L11-998,FALSE)*2) -> 1 | O11: 38 | Q11: 1001;1402 | R11: 43500;1 | T11: =VLOOKUP(K11,[2]ItemConfig!$A:$C,3,FALSE)&"×"&M11 -> 灵石×43500 | U11: =VLOOKUP(L11,[2]ItemConfig!$A:$C,3,FALSE)&"×"&N11 -> 良品增元丹×1
A12: 8 | B12: 1 | C12: 8 | E12: 第8层 | G12: 1 | H12: 2008 | I12: 1702;1001 | K12: 1001 | L12: 1702 | M12: =ROUND(VLOOKUP(O12,[1]ResourceLevelConfig!$A:$C,3,FALSE)*0.01,0)*300 -> 44700 | N12: =IF(L12>1400,1,VLOOKUP(O12,[1]ResourceLevelConfig!$A:$E,L12-998,FALSE)*2) -> 1 | O12: 41 | Q12: 1001;1702 | R12: 44700;1 | T12: =VLOOKUP(K12,[2]ItemConfig!$A:$C,3,FALSE)&"×"&M12 -> 灵石×44700 | U12: =VLOOKUP(L12,[2]ItemConfig!$A:$C,3,FALSE)&"×"&N12 -> 归识还元丹×1
A13: 9 | B13: 1 | C13: 9 | E13: 第9层 | G13: 1 | H13: 2009 | I13: 21012;1001 | K13: 1001 | L13: 21012 | M13: =ROUND(VLOOKUP(O13,[1]ResourceLevelConfig!$A:$C,3,FALSE)*0.01,0)*300 -> 46200 | N13: =IF(L13>1400,1,VLOOKUP(O13,[1]ResourceLevelConfig!$A:$E,L13-998,FALSE)*2) -> 1 | O13: 44 | Q13: 1001;21012 | R13: 46200;1 | T13: =VLOOKUP(K13,[2]ItemConfig!$A:$C,3,FALSE)&"×"&M13 -> 灵石×46200 | U13: =VLOOKUP(L13,[2]ItemConfig!$A:$C,3,FALSE)&"×"&N13 -> 紫色神识符×1
A14: 10 | B14: 1 | C14: 10 | E14: 第10层 | G14: 1 | H14: 2010 | I14: 1402;1001 | K14: 1001 | L14: 1402 | M14: =ROUND(VLOOKUP(O14,[1]ResourceLevelConfig!$A:$C,3,FALSE)*0.01,0)*300 -> 47700 | N14: =IF(L14>1400,1,VLOOKUP(O14,[1]ResourceLevelConfig!$A:$E,L14-998,FALSE)*2) -> 1 | O14: 47 | Q14: 1001;1402 | R14: 47700;1 | T14: =VLOOKUP(K14,[2]ItemConfig!$A:$C,3,FALSE)&"×"&M14 -> 灵石×47700 | U14: =VLOOKUP(L14,[2]ItemConfig!$A:$C,3,FALSE)&"×"&N14 -> 良品增元丹×1
A15: 11 | B15: 1 | C15: 11 | E15: 第11层 | G15: 1 | H15: 2011 | I15: 1702;1001 | K15: 1001 | L15: 1702 | M15: =ROUND(VLOOKUP(O15,[1]ResourceLevelConfig!$A:$C,3,FALSE)*0.01,0)*300 -> 48900 | N15: =IF(L15>1400,1,VLOOKUP(O15,[1]ResourceLevelConfig!$A:$E,L15-998,FALSE)*2) -> 1 | O15: 50 | Q15: 1001;1702 | R15: 48900;1 | T15: =VLOOKUP(K15,[2]ItemConfig!$A:$C,3,FALSE)&"×"&M15 -> 灵石×48900 | U15: =VLOOKUP(L15,[2]ItemConfig!$A:$C,3,FALSE)&"×"&N15 -> 归识还元丹×1
A16: 12 | B16: 1 | C16: 12 | E16: 第12层 | G16: 1 | H16: 2012 | I16: 21012;1001 | K16: 1001 | L16: 21012 | M16: =ROUND(VLOOKUP(O16,[1]ResourceLevelConfig!$A:$C,3,FALSE)*0.01,0)*300 -> 50400 | N16: =IF(L16>1400,1,VLOOKUP(O16,[1]ResourceLevelConfig!$A:$E,L16-998,FALSE)*2) -> 1 | O16: 53 | Q16: 1001;21012 | R16: 50400;1 | T16: =VLOOKUP(K16,[2]ItemConfig!$A:$C,3,FALSE)&"×"&M16 -> 灵石×50400 | U16: =VLOOKUP(L16,[2]ItemConfig!$A:$C,3,FALSE)&"×"&N16 -> 紫色神识符×1
A17: 13 | B17: 1 | C17: 13 | E17: 第13层 | G17: 1 | H17: 2013 | I17: 1402;1001 | K17: 1001 | L17: 1402 | M17: =ROUND(VLOOKUP(O17,[1]ResourceLevelConfig!$A:$C,3,FALSE)*0.01,0)*300 -> 52200 | N17: =IF(L17>1400,1,VLOOKUP(O17,[1]ResourceLevelConfig!$A:$E,L17-998,FALSE)*2) -> 1 | O17: 56 | Q17: 1001;1402 | R17: 52200;1 | T17: =VLOOKUP(K17,[2]ItemConfig!$A:$C,3,FALSE)&"×"&M17 -> 灵石×52200 | U17: =VLOOKUP(L17,[2]ItemConfig!$A:$C,3,FALSE)&"×"&N17 -> 良品增元丹×1
A18: 14 | B18: 1 | C18: 14 | E18: 第14层 | G18: 1 | H18: 2014 | I18: 1702;1001 | K18: 1001 | L18: 1702 | M18: =ROUND(VLOOKUP(O18,[1]ResourceLevelConfig!$A:$C,3,FALSE)*0.01,0)*300 -> 53700 | N18: =IF(L18>1400,1,VLOOKUP(O18,[1]ResourceLevelConfig!$A:$E,L18-998,FALSE)*2) -> 1 | O18: 59 | Q18: 1001;1702 | R18: 53700;1 | T18: =VLOOKUP(K18,[2]ItemConfig!$A:$C,3,FALSE)&"×"&M18 -> 灵石×53700 | U18: =VLOOKUP(L18,[2]ItemConfig!$A:$C,3,FALSE)&"×"&N18 -> 归识还元丹×1
A19: 15 | B19: 1 | C19: 15 | E19: 第15层 | G19: 1 | H19: 2015 | I19: 21012;1001 | K19: 1001 | L19: 21012 | M19: =ROUND(VLOOKUP(O19,[1]ResourceLevelConfig!$A:$C,3,FALSE)*0.01,0)*300 -> 55200 | N19: =IF(L19>1400,1,VLOOKUP(O19,[1]ResourceLevelConfig!$A:$E,L19-998,FALSE)*2) -> 1 | O19: 62 | Q19: 1001;21012 | R19: 55200;1 | T19: =VLOOKUP(K19,[2]ItemConfig!$A:$C,3,FALSE)&"×"&M19 -> 灵石×55200 | U19: =VLOOKUP(L19,[2]ItemConfig!$A:$C,3,FALSE)&"×"&N19 -> 紫色神识符×1
A20: 16 | B20: 1 | C20: 16 | E20: 第16层 | G20: 1 | H20: 2016 | I20: 1402;1001 | K20: 1001 | L20: 1402 | M20: =ROUND(VLOOKUP(O20,[1]ResourceLevelConfig!$A:$C,3,FALSE)*0.01,0)*300 -> 57000 | N20: =IF(L20>1400,1,VLOOKUP(O20,[1]ResourceLevelConfig!$A:$E,L20-998,FALSE)*2) -> 1 | O20: 65 | Q20: 1001;1402 | R20: 57000;1 | T20: =VLOOKUP(K20,[2]ItemConfig!$A:$C,3,FALSE)&"×"&M20 -> 灵石×57000 | U20: =VLOOKUP(L20,[2]ItemConfig!$A:$C,3,FALSE)&"×"&N20 -> 良品增元丹×1
A21: 17 | B21: 1 | C21: 17 | E21: 第17层 | G21: 1 | H21: 2017 | I21: 1702;1001 | K21: 1001 | L21: 1702 | M21: =ROUND(VLOOKUP(O21,[1]ResourceLevelConfig!$A:$C,3,FALSE)*0.01,0)*300 -> 58800 | N21: =IF(L21>1400,1,VLOOKUP(O21,[1]ResourceLevelConfig!$A:$E,L21-998,FALSE)*2) -> 1 | O21: 68 | Q21: 1001;1702 | R21: 58800;1 | T21: =VLOOKUP(K21,[2]ItemConfig!$A:$C,3,FALSE)&"×"&M21 -> 灵石×58800 | U21: =VLOOKUP(L21,[2]ItemConfig!$A:$C,3,FALSE)&"×"&N21 -> 归识还元丹×1
A22: 18 | B22: 1 | C22: 18 | E22: 第18层 | G22: 1 | H22: 2018 | I22: 21012;1001 | K22: 1001 | L22: 21012 | M22: =ROUND(VLOOKUP(O22,[1]ResourceLevelConfig!$A:$C,3,FALSE)*0.01,0)*300 -> 60600 | N22: =IF(L22>1400,1,VLOOKUP(O22,[1]ResourceLevelConfig!$A:$E,L22-998,FALSE)*2) -> 1 | O22: 71 | Q22: 1001;21012 | R22: 60600;1 | T22: =VLOOKUP(K22,[2]ItemConfig!$A:$C,3,FALSE)&"×"&M22 -> 灵石×60600 | U22: =VLOOKUP(L22,[2]ItemConfig!$A:$C,3,FALSE)&"×"&N22 -> 紫色神识符×1
A23: 19 | B23: 1 | C23: 19 | E23: 第19层 | G23: 1 | H23: 2019 | I23: 1402;1001 | K23: 1001 | L23: 1402 | M23: =ROUND(VLOOKUP(O23,[1]ResourceLevelConfig!$A:$C,3,FALSE)*0.01,0)*300 -> 62400 | N23: =IF(L23>1400,1,VLOOKUP(O23,[1]ResourceLevelConfig!$A:$E,L23-998,FALSE)*2) -> 1 | O23: 74 | Q23: 1001;1402 | R23: 62400;1 | T23: =VLOOKUP(K23,[2]ItemConfig!$A:$C,3,FALSE)&"×"&M23 -> 灵石×62400 | U23: =VLOOKUP(L23,[2]ItemConfig!$A:$C,3,FALSE)&"×"&N23 -> 良品增元丹×1
A24: 20 | B24: 1 | C24: 20 | E24: 第20层 | G24: 1 | H24: 2020 | I24: 1702;1001 | K24: 1001 | L24: 1702 | M24: =ROUND(VLOOKUP(O24,[1]ResourceLevelConfig!$A:$C,3,FALSE)*0.01,0)*300 -> 64200 | N24: =IF(L24>1400,1,VLOOKUP(O24,[1]ResourceLevelConfig!$A:$E,L24-998,FALSE)*2) -> 1 | O24: 77 | Q24: 1001;1702 | R24: 64200;1 | T24: =VLOOKUP(K24,[2]ItemConfig!$A:$C,3,FALSE)&"×"&M24 -> 灵石×64200 | U24: =VLOOKUP(L24,[2]ItemConfig!$A:$C,3,FALSE)&"×"&N24 -> 归识还元丹×1
A25: 21 | B25: 1 | C25: 21 | E25: 第21层 | G25: 1 | H25: 2021 | I25: 21012;1001 | K25: 1001 | L25: 21012 | M25: =ROUND(VLOOKUP(O25,[1]ResourceLevelConfig!$A:$C,3,FALSE)*0.01,0)*300 -> 66300 | N25: =IF(L25>1400,1,VLOOKUP(O25,[1]ResourceLevelConfig!$A:$E,L25-998,FALSE)*2) -> 1 | O25: 80 | Q25: 1001;21012 | R25: 66300;1 | T25: =VLOOKUP(K25,[2]ItemConfig!$A:$C,3,FALSE)&"×"&M25 -> 灵石×66300 | U25: =VLOOKUP(L25,[2]ItemConfig!$A:$C,3,FALSE)&"×"&N25 -> 紫色神识符×1
A26: 22 | B26: 1 | C26: 22 | E26: 第22层 | G26: 1 | H26: 2022 | I26: 1402;1001 | K26: 1001 | L26: 1402 | M26: =ROUND(VLOOKUP(O26,[1]ResourceLevelConfig!$A:$C,3,FALSE)*0.01,0)*300 -> 68100 | N26: =IF(L26>1400,1,VLOOKUP(O26,[1]ResourceLevelConfig!$A:$E,L26-998,FALSE)*2) -> 1 | O26: 83 | Q26: 1001;1402 | R26: 68100;1 | T26: =VLOOKUP(K26,[2]ItemConfig!$A:$C,3,FALSE)&"×"&M26 -> 灵石×68100 | U26: =VLOOKUP(L26,[2]ItemConfig!$A:$C,3,FALSE)&"×"&N26 -> 良品增元丹×1
A27: 23 | B27: 1 | C27: 23 | E27: 第23层 | G27: 1 | H27: 2023 | I27: 1702;1001 | K27: 1001 | L27: 1702 | M27: =ROUND(VLOOKUP(O27,[1]ResourceLevelConfig!$A:$C,3,FALSE)*0.01,0)*300 -> 70200 | N27: =IF(L27>1400,1,VLOOKUP(O27,[1]ResourceLevelConfig!$A:$E,L27-998,FALSE)*2) -> 1 | O27: 86 | Q27: 1001;1702 | R27: 70200;1 | T27: =VLOOKUP(K27,[2]ItemConfig!$A:$C,3,FALSE)&"×"&M27 -> 灵石×70200 | U27: =VLOOKUP(L27,[2]ItemConfig!$A:$C,3,FALSE)&"×"&N27 -> 归识还元丹×1
A28: 24 | B28: 1 | C28: 24 | E28: 第24层 | G28: 1 | H28: 2024 | I28: 21012;1001 | K28: 1001 | L28: 21012 | M28: =ROUND(VLOOKUP(O28,[1]ResourceLevelConfig!$A:$C,3,FALSE)*0.01,0)*300 -> 72600 | N28: =IF(L28>1400,1,VLOOKUP(O28,[1]ResourceLevelConfig!$A:$E,L28-998,FALSE)*2) -> 1 | O28: 89 | Q28: 1001;21012 | R28: 72600;1 | T28: =VLOOKUP(K28,[2]ItemConfig!$A:$C,3,FALSE)&"×"&M28 -> 灵石×72600 | U28: =VLOOKUP(L28,[2]ItemConfig!$A:$C,3,FALSE)&"×"&N28 -> 紫色神识符×1
A29: 25 | B29: 1 | C29: 25 | E29: 第25层 | G29: 1 | H29: 2025 | I29: 1402;1001 | K29: 1001 | L29: 1402 | M29: =ROUND(VLOOKUP(O29,[1]ResourceLevelConfig!$A:$C,3,FALSE)*0.01,0)*300 -> 74700 | N29: =IF(L29>1400,1,VLOOKUP(O29,[1]ResourceLevelConfig!$A:$E,L29-998,FALSE)*2) -> 1 | O29: 92 | Q29: 1001;1402 | R29: 74700;1 | T29: =VLOOKUP(K29,[2]ItemConfig!$A:$C,3,FALSE)&"×"&M29 -> 灵石×74700 | U29: =VLOOKUP(L29,[2]ItemConfig!$A:$C,3,FALSE)&"×"&N29 -> 良品增元丹×1
A30: 26 | B30: 1 | C30: 26 | E30: 第26层 | G30: 1 | H30: 2026 | I30: 1702;1001 | K30: 1001 | L30: 1702 | M30: =ROUND(VLOOKUP(O30,[1]ResourceLevelConfig!$A:$C,3,FALSE)*0.01,0)*300 -> 76800 | N30: =IF(L30>1400,1,VLOOKUP(O30,[1]ResourceLevelConfig!$A:$E,L30-998,FALSE)*2) -> 1 | O30: 95 | Q30: 1001;1702 | R30: 76800;1 | T30: =VLOOKUP(K30,[2]ItemConfig!$A:$C,3,FALSE)&"×"&M30 -> 灵石×76800 | U30: =VLOOKUP(L30,[2]ItemConfig!$A:$C,3,FALSE)&"×"&N30 -> 归识还元丹×1
A31: 27 | B31: 1 | C31: 27 | E31: 第27层 | G31: 1 | H31: 2027 | I31: 21012;1001 | K31: 1001 | L31: 21012 | M31: =ROUND(VLOOKUP(O31,[1]ResourceLevelConfig!$A:$C,3,FALSE)*0.01,0)*300 -> 79200 | N31: =IF(L31>1400,1,VLOOKUP(O31,[1]ResourceLevelConfig!$A:$E,L31-998,FALSE)*2) -> 1 | O31: 98 | Q31: 1001;21012 | R31: 79200;1 | T31: =VLOOKUP(K31,[2]ItemConfig!$A:$C,3,FALSE)&"×"&M31 -> 灵石×79200 | U31: =VLOOKUP(L31,[2]ItemConfig!$A:$C,3,FALSE)&"×"&N31 -> 紫色神识符×1
A32: 28 | B32: 1 | C32: 28 | E32: 第28层 | G32: 1 | H32: 2028 | I32: 1402;1001 | K32: 1001 | L32: 1402 | M32: =ROUND(VLOOKUP(O32,[1]ResourceLevelConfig!$A:$C,3,FALSE)*0.01,0)*300 -> 81600 | N32: =IF(L32>1400,1,VLOOKUP(O32,[1]ResourceLevelConfig!$A:$E,L32-998,FALSE)*2) -> 1 | O32: 101 | Q32: 1001;1402 | R32: 81600;1 | T32: =VLOOKUP(K32,[2]ItemConfig!$A:$C,3,FALSE)&"×"&M32 -> 灵石×81600 | U32: =VLOOKUP(L32,[2]ItemConfig!$A:$C,3,FALSE)&"×"&N32 -> 良品增元丹×1
A33: 29 | B33: 1 | C33: 29 | E33: 第29层 | G33: 1 | H33: 2029 | I33: 1702;1001 | K33: 1001 | L33: 1702 | M33: =ROUND(VLOOKUP(O33,[1]ResourceLevelConfig!$A:$C,3,FALSE)*0.01,0)*300 -> 84300 | N33: =IF(L33>1400,1,VLOOKUP(O33,[1]ResourceLevelConfig!$A:$E,L33-998,FALSE)*2) -> 1 | O33: 104 | Q33: 1001;1702 | R33: 84300;1 | T33: =VLOOKUP(K33,[2]ItemConfig!$A:$C,3,FALSE)&"×"&M33 -> 灵石×84300 | U33: =VLOOKUP(L33,[2]ItemConfig!$A:$C,3,FALSE)&"×"&N33 -> 归识还元丹×1
A34: 30 | B34: 1 | C34: 30 | E34: 第30层 | G34: 1 | H34: 2030 | I34: 21012;1001 | K34: 1001 | L34: 21012 | M34: =ROUND(VLOOKUP(O34,[1]ResourceLevelConfig!$A:$C,3,FALSE)*0.01,0)*300 -> 86700 | N34: =IF(L34>1400,1,VLOOKUP(O34,[1]ResourceLevelConfig!$A:$E,L34-998,FALSE)*2) -> 1 | O34: 107 | Q34: 1001;21012 | R34: 86700;1 | T34: =VLOOKUP(K34,[2]ItemConfig!$A:$C,3,FALSE)&"×"&M34 -> 灵石×86700 | U34: =VLOOKUP(L34,[2]ItemConfig!$A:$C,3,FALSE)&"×"&N34 -> 紫色神识符×1
A35: 31 | B35: 1 | C35: 31 | E35: 第31层 | G35: 1 | H35: 2031 | I35: 1403;1001 | K35: 1001 | L35: 1403 | M35: =ROUND(VLOOKUP(O35,[1]ResourceLevelConfig!$A:$C,3,FALSE)*0.01,0)*300 -> 89400 | N35: =IF(L35>1400,1,VLOOKUP(O35,[1]ResourceLevelConfig!$A:$E,L35-998,FALSE)*2) -> 1 | O35: 110 | Q35: 1001;1403 | R35: 89400;1 | T35: =VLOOKUP(K35,[2]ItemConfig!$A:$C,3,FALSE)&"×"&M35 -> 灵石×89400 | U35: =VLOOKUP(L35,[2]ItemConfig!$A:$C,3,FALSE)&"×"&N35 -> 上品增元丹×1
A36: 32 | B36: 1 | C36: 32 | E36: 第32层 | G36: 1 | H36: 2032 | I36: 1702;1001 | K36: 1001 | L36: 1702 | M36: =ROUND(VLOOKUP(O36,[1]ResourceLevelConfig!$A:$C,3,FALSE)*0.01,0)*300 -> 92100 | N36: =IF(L36>1400,1,VLOOKUP(O36,[1]ResourceLevelConfig!$A:$E,L36-998,FALSE)*2) -> 1 | O36: 113 | Q36: 1001;1702 | R36: 92100;1 | T36: =VLOOKUP(K36,[2]ItemConfig!$A:$C,3,FALSE)&"×"&M36 -> 灵石×92100 | U36: =VLOOKUP(L36,[2]ItemConfig!$A:$C,3,FALSE)&"×"&N36 -> 归识还元丹×1
A37: 33 | B37: 1 | C37: 33 | E37: 第33层 | G37: 1 | H37: 2033 | I37: 21012;1001 | K37: 1001 | L37: 21012 | M37: =ROUND(VLOOKUP(O37,[1]ResourceLevelConfig!$A:$C,3,FALSE)*0.01,0)*300 -> 95100 | N37: =IF(L37>1400,1,VLOOKUP(O37,[1]ResourceLevelConfig!$A:$E,L37-998,FALSE)*2) -> 1 | O37: 116 | Q37: 1001;21012 | R37: 95100;1 | T37: =VLOOKUP(K37,[2]ItemConfig!$A:$C,3,FALSE)&"×"&M37 -> 灵石×95100 | U37: =VLOOKUP(L37,[2]ItemConfig!$A:$C,3,FALSE)&"×"&N37 -> 紫色神识符×1
A38: 34 | B38: 1 | C38: 34 | E38: 第34层 | G38: 1 | H38: 2034 | I38: 1403;1001 | K38: 1001 | L38: 1403 | M38: =ROUND(VLOOKUP(O38,[1]ResourceLevelConfig!$A:$C,3,FALSE)*0.01,0)*300 -> 97800 | N38: =IF(L38>1400,1,VLOOKUP(O38,[1]ResourceLevelConfig!$A:$E,L38-998,FALSE)*2) -> 1 | O38: 119 | Q38: 1001;1403 | R38: 97800;1 | T38: =VLOOKUP(K38,[2]ItemConfig!$A:$C,3,FALSE)&"×"&M38 -> 灵石×97800 | U38: =VLOOKUP(L38,[2]ItemConfig!$A:$C,3,FALSE)&"×"&N38 -> 上品增元丹×1
A39: 35 | B39: 1 | C39: 35 | E39: 第35层 | G39: 1 | H39: 2035 | I39: 1702;1001 | K39: 1001 | L39: 1702 | M39: =ROUND(VLOOKUP(O39,[1]ResourceLevelConfig!$A:$C,3,FALSE)*0.01,0)*300 -> 100800 | N39: =IF(L39>1400,1,VLOOKUP(O39,[1]ResourceLevelConfig!$A:$E,L39-998,FALSE)*2) -> 1 | O39: 122 | Q39: 1001;1702 | R39: 100800;1 | T39: =VLOOKUP(K39,[2]ItemConfig!$A:$C,3,FALSE)&"×"&M39 -> 灵石×100800 | U39: =VLOOKUP(L39,[2]ItemConfig!$A:$C,3,FALSE)&"×"&N39 -> 归识还元丹×1
A40: 36 | B40: 1 | C40: 36 | E40: 第36层 | G40: 1 | H40: 2036 | I40: 21012;1001 | K40: 1001 | L40: 21012 | M40: =ROUND(VLOOKUP(O40,[1]ResourceLevelConfig!$A:$C,3,FALSE)*0.01,0)*300 -> 103800 | N40: =IF(L40>1400,1,VLOOKUP(O40,[1]ResourceLevelConfig!$A:$E,L40-998,FALSE)*2) -> 1 | O40: 125 | Q40: 1001;21012 | R40: 103800;1 | T40: =VLOOKUP(K40,[2]ItemConfig!$A:$C,3,FALSE)&"×"&M40 -> 灵石×103800 | U40: =VLOOKUP(L40,[2]ItemConfig!$A:$C,3,FALSE)&"×"&N40 -> 紫色神识符×1
A41: 37 | B41: 1 | C41: 37 | E41: 第37层 | G41: 1 | H41: 2037 | I41: 1403;1001 | K41: 1001 | L41: 1403 | M41: =ROUND(VLOOKUP(O41,[1]ResourceLevelConfig!$A:$C,3,FALSE)*0.01,0)*300 -> 107100 | N41: =IF(L41>1400,1,VLOOKUP(O41,[1]ResourceLevelConfig!$A:$E,L41-998,FALSE)*2) -> 1 | O41: 128 | Q41: 1001;1403 | R41: 107100;1 | T41: =VLOOKUP(K41,[2]ItemConfig!$A:$C,3,FALSE)&"×"&M41 -> 灵石×107100 | U41: =VLOOKUP(L41,[2]ItemConfig!$A:$C,3,FALSE)&"×"&N41 -> 上品增元丹×1
A42: 38 | B42: 1 | C42: 38 | E42: 第38层 | G42: 1 | H42: 2038 | I42: 1702;1001 | K42: 1001 | L42: 1702 | M42: =ROUND(VLOOKUP(O42,[1]ResourceLevelConfig!$A:$C,3,FALSE)*0.01,0)*300 -> 110400 | N42: =IF(L42>1400,1,VLOOKUP(O42,[1]ResourceLevelConfig!$A:$E,L42-998,FALSE)*2) -> 1 | O42: 131 | Q42: 1001;1702 | R42: 110400;1 | T42: =VLOOKUP(K42,[2]ItemConfig!$A:$C,3,FALSE)&"×"&M42 -> 灵石×110400 | U42: =VLOOKUP(L42,[2]ItemConfig!$A:$C,3,FALSE)&"×"&N42 -> 归识还元丹×1
A43: 39 | B43: 1 | C43: 39 | E43: 第39层 | G43: 1 | H43: 2039 | I43: 21012;1001 | K43: 1001 | L43: 21012 | M43: =ROUND(VLOOKUP(O43,[1]ResourceLevelConfig!$A:$C,3,FALSE)*0.01,0)*300 -> 113700 | N43: =IF(L43>1400,1,VLOOKUP(O43,[1]ResourceLevelConfig!$A:$E,L43-998,FALSE)*2) -> 1 | O43: 134 | Q43: 1001;21012 | R43: 113700;1 | T43: =VLOOKUP(K43,[2]ItemConfig!$A:$C,3,FALSE)&"×"&M43 -> 灵石×113700 | U43: =VLOOKUP(L43,[2]ItemConfig!$A:$C,3,FALSE)&"×"&N43 -> 紫色神识符×1
A44: 40 | B44: 1 | C44: 40 | E44: 第40层 | G44: 1 | H44: 2040 | I44: 1403;1001 | K44: 1001 | L44: 1403 | M44: =ROUND(VLOOKUP(O44,[1]ResourceLevelConfig!$A:$C,3,FALSE)*0.01,0)*300 -> 117300 | N44: =IF(L44>1400,1,VLOOKUP(O44,[1]ResourceLevelConfig!$A:$E,L44-998,FALSE)*2) -> 1 | O44: 137 | Q44: 1001;1403 | R44: 117300;1 | T44: =VLOOKUP(K44,[2]ItemConfig!$A:$C,3,FALSE)&"×"&M44 -> 灵石×117300 | U44: =VLOOKUP(L44,[2]ItemConfig!$A:$C,3,FALSE)&"×"&N44 -> 上品增元丹×1
A45: 41 | B45: 1 | C45: 41 | E45: 第41层 | G45: 1 | H45: 2041 | I45: 1702;1001 | K45: 1001 | L45: 1702 | M45: =ROUND(VLOOKUP(O45,[1]ResourceLevelConfig!$A:$C,3,FALSE)*0.01,0)*300 -> 120900 | N45: =IF(L45>1400,1,VLOOKUP(O45,[1]ResourceLevelConfig!$A:$E,L45-998,FALSE)*2) -> 1 | O45: 140 | Q45: 1001;1702 | R45: 120900;1 | T45: =VLOOKUP(K45,[2]ItemConfig!$A:$C,3,FALSE)&"×"&M45 -> 灵石×120900 | U45: =VLOOKUP(L45,[2]ItemConfig!$A:$C,3,FALSE)&"×"&N45 -> 归识还元丹×1
A46: 42 | B46: 1 | C46: 42 | E46: 第42层 | G46: 1 | H46: 2042 | I46: 21012;1001 | K46: 1001 | L46: 21012 | M46: =ROUND(VLOOKUP(O46,[1]ResourceLevelConfig!$A:$C,3,FALSE)*0.01,0)*300 -> 124500 | N46: =IF(L46>1400,1,VLOOKUP(O46,[1]ResourceLevelConfig!$A:$E,L46-998,FALSE)*2) -> 1 | O46: 143 | Q46: 1001;21012 | R46: 124500;1 | T46: =VLOOKUP(K46,[2]ItemConfig!$A:$C,3,FALSE)&"×"&M46 -> 灵石×124500 | U46: =VLOOKUP(L46,[2]ItemConfig!$A:$C,3,FALSE)&"×"&N46 -> 紫色神识符×1
A47: 43 | B47: 1 | C47: 43 | E47: 第43层 | G47: 1 | H47: 2043 | I47: 1403;1001 | K47: 1001 | L47: 1403 | M47: =ROUND(VLOOKUP(O47,[1]ResourceLevelConfig!$A:$C,3,FALSE)*0.01,0)*300 -> 128400 | N47: =IF(L47>1400,1,VLOOKUP(O47,[1]ResourceLevelConfig!$A:$E,L47-998,FALSE)*2) -> 1 | O47: 146 | Q47: 1001;1403 | R47: 128400;1 | T47: =VLOOKUP(K47,[2]ItemConfig!$A:$C,3,FALSE)&"×"&M47 -> 灵石×128400 | U47: =VLOOKUP(L47,[2]ItemConfig!$A:$C,3,FALSE)&"×"&N47 -> 上品增元丹×1
A48: 44 | B48: 1 | C48: 44 | E48: 第44层 | G48: 1 | H48: 2044 | I48: 1702;1001 | K48: 1001 | L48: 1702 | M48: =ROUND(VLOOKUP(O48,[1]ResourceLevelConfig!$A:$C,3,FALSE)*0.01,0)*300 -> 132300 | N48: =IF(L48>1400,1,VLOOKUP(O48,[1]ResourceLevelConfig!$A:$E,L48-998,FALSE)*2) -> 1 | O48: 149 | Q48: 1001;1702 | R48: 132300;1 | T48: =VLOOKUP(K48,[2]ItemConfig!$A:$C,3,FALSE)&"×"&M48 -> 灵石×132300 | U48: =VLOOKUP(L48,[2]ItemConfig!$A:$C,3,FALSE)&"×"&N48 -> 归识还元丹×1
A49: 45 | B49: 1 | C49: 45 | E49: 第45层 | G49: 1 | H49: 2045 | I49: 21012;1001 | K49: 1001 | L49: 21012 | M49: =ROUND(VLOOKUP(O49,[1]ResourceLevelConfig!$A:$C,3,FALSE)*0.01,0)*300 -> 136200 | N49: =IF(L49>1400,1,VLOOKUP(O49,[1]ResourceLevelConfig!$A:$E,L49-998,FALSE)*2) -> 1 | O49: 152 | Q49: 1001;21012 | R49: 136200;1 | T49: =VLOOKUP(K49,[2]ItemConfig!$A:$C,3,FALSE)&"×"&M49 -> 灵石×136200 | U49: =VLOOKUP(L49,[2]ItemConfig!$A:$C,3,FALSE)&"×"&N49 -> 紫色神识符×1
A50: 46 | B50: 1 | C50: 46 | E50: 第46层 | G50: 1 | H50: 2046 | I50: 1403;1001 | K50: 1001 | L50: 1403 | M50: =ROUND(VLOOKUP(O50,[1]ResourceLevelConfig!$A:$C,3,FALSE)*0.01,0)*300 -> 140400 | N50: =IF(L50>1400,1,VLOOKUP(O50,[1]ResourceLevelConfig!$A:$E,L50-998,FALSE)*2) -> 1 | O50: 155 | Q50: 1001;1403 | R50: 140400;1 | T50: =VLOOKUP(K50,[2]ItemConfig!$A:$C,3,FALSE)&"×"&M50 -> 灵石×140400 | U50: =VLOOKUP(L50,[2]ItemConfig!$A:$C,3,FALSE)&"×"&N50 -> 上品增元丹×1
A51: 47 | B51: 1 | C51: 47 | E51: 第47层 | G51: 1 | H51: 2047 | I51: 1702;1001 | K51: 1001 | L51: 1702 | M51: =ROUND(VLOOKUP(O51,[1]ResourceLevelConfig!$A:$C,3,FALSE)*0.01,0)*300 -> 144600 | N51: =IF(L51>1400,1,VLOOKUP(O51,[1]ResourceLevelConfig!$A:$E,L51-998,FALSE)*2) -> 1 | O51: 158 | Q51: 1001;1702 | R51: 144600;1 | T51: =VLOOKUP(K51,[2]ItemConfig!$A:$C,3,FALSE)&"×"&M51 -> 灵石×144600 | U51: =VLOOKUP(L51,[2]ItemConfig!$A:$C,3,FALSE)&"×"&N51 -> 归识还元丹×1
A52: 48 | B52: 1 | C52: 48 | E52: 第48层 | G52: 1 | H52: 2048 | I52: 21012;1001 | K52: 1001 | L52: 21012 | M52: =ROUND(VLOOKUP(O52,[1]ResourceLevelConfig!$A:$C,3,FALSE)*0.01,0)*300 -> 149100 | N52: =IF(L52>1400,1,VLOOKUP(O52,[1]ResourceLevelConfig!$A:$E,L52-998,FALSE)*2) -> 1 | O52: 161 | Q52: 1001;21012 | R52: 149100;1 | T52: =VLOOKUP(K52,[2]ItemConfig!$A:$C,3,FALSE)&"×"&M52 -> 灵石×149100 | U52: =VLOOKUP(L52,[2]ItemConfig!$A:$C,3,FALSE)&"×"&N52 -> 紫色神识符×1
A53: 49 | B53: 1 | C53: 49 | E53: 第49层 | G53: 1 | H53: 2049 | I53: 1403;1001 | K53: 1001 | L53: 1403 | M53: =ROUND(VLOOKUP(O53,[1]ResourceLevelConfig!$A:$C,3,FALSE)*0.01,0)*300 -> 153600 | N53: =IF(L53>1400,1,VLOOKUP(O53,[1]ResourceLevelConfig!$A:$E,L53-998,FALSE)*2) -> 1 | O53: 164 | Q53: 1001;1403 | R53: 153600;1 | T53: =VLOOKUP(K53,[2]ItemConfig!$A:$C,3,FALSE)&"×"&M53 -> 灵石×153600 | U53: =VLOOKUP(L53,[2]ItemConfig!$A:$C,3,FALSE)&"×"&N53 -> 上品增元丹×1
A54: 50 | B54: 1 | C54: 50 | E54: 第50层 | G54: 1 | H54: 2050 | I54: 1702;1001 | K54: 1001 | L54: 1702 | M54: =ROUND(VLOOKUP(O54,[1]ResourceLevelConfig!$A:$C,3,FALSE)*0.01,0)*300 -> 158400 | N54: =IF(L54>1400,1,VLOOKUP(O54,[1]ResourceLevelConfig!$A:$E,L54-998,FALSE)*2) -> 1 | O54: 167 | Q54: 1001;1702 | R54: 158400;1 | T54: =VLOOKUP(K54,[2]ItemConfig!$A:$C,3,FALSE)&"×"&M54 -> 灵石×158400 | U54: =VLOOKUP(L54,[2]ItemConfig!$A:$C,3,FALSE)&"×"&N54 -> 归识还元丹×1
A55: 51 | B55: 1 | C55: 51 | E55: 第51层 | G55: 1 | H55: 2051 | I55: 21012;1001 | K55: 1001 | L55: 21012 | M55: =ROUND(VLOOKUP(O55,[1]ResourceLevelConfig!$A:$C,3,FALSE)*0.01,0)*300 -> 163200 | N55: =IF(L55>1400,1,VLOOKUP(O55,[1]ResourceLevelConfig!$A:$E,L55-998,FALSE)*2) -> 1 | O55: 170 | Q55: 1001;21012 | R55: 163200;1 | T55: =VLOOKUP(K55,[2]ItemConfig!$A:$C,3,FALSE)&"×"&M55 -> 灵石×163200 | U55: =VLOOKUP(L55,[2]ItemConfig!$A:$C,3,FALSE)&"×"&N55 -> 紫色神识符×1
A56: 52 | B56: 1 | C56: 52 | E56: 第52层 | G56: 1 | H56: 2052 | I56: 1403;1001 | K56: 1001 | L56: 1403 | M56: =ROUND(VLOOKUP(O56,[1]ResourceLevelConfig!$A:$C,3,FALSE)*0.01,0)*300 -> 168000 | N56: =IF(L56>1400,1,VLOOKUP(O56,[1]ResourceLevelConfig!$A:$E,L56-998,FALSE)*2) -> 1 | O56: 173 | Q56: 1001;1403 | R56: 168000;1 | T56: =VLOOKUP(K56,[2]ItemConfig!$A:$C,3,FALSE)&"×"&M56 -> 灵石×168000 | U56: =VLOOKUP(L56,[2]ItemConfig!$A:$C,3,FALSE)&"×"&N56 -> 上品增元丹×1
A57: 53 | B57: 1 | C57: 53 | E57: 第53层 | G57: 1 | H57: 2053 | I57: 1702;1001 | K57: 1001 | L57: 1702 | M57: =ROUND(VLOOKUP(O57,[1]ResourceLevelConfig!$A:$C,3,FALSE)*0.01,0)*300 -> 173100 | N57: =IF(L57>1400,1,VLOOKUP(O57,[1]ResourceLevelConfig!$A:$E,L57-998,FALSE)*2) -> 1 | O57: 176 | Q57: 1001;1702 | R57: 173100;1 | T57: =VLOOKUP(K57,[2]ItemConfig!$A:$C,3,FALSE)&"×"&M57 -> 灵石×173100 | U57: =VLOOKUP(L57,[2]ItemConfig!$A:$C,3,FALSE)&"×"&N57 -> 归识还元丹×1
A58: 54 | B58: 1 | C58: 54 | E58: 第54层 | G58: 1 | H58: 2054 | I58: 21012;1001 | K58: 1001 | L58: 21012 | M58: =ROUND(VLOOKUP(O58,[1]ResourceLevelConfig!$A:$C,3,FALSE)*0.01,0)*300 -> 178500 | N58: =IF(L58>1400,1,VLOOKUP(O58,[1]ResourceLevelConfig!$A:$E,L58-998,FALSE)*2) -> 1 | O58: 179 | Q58: 1001;21012 | R58: 178500;1 | T58: =VLOOKUP(K58,[2]ItemConfig!$A:$C,3,FALSE)&"×"&M58 -> 灵石×178500 | U58: =VLOOKUP(L58,[2]ItemConfig!$A:$C,3,FALSE)&"×"&N58 -> 紫色神识符×1
A59: 55 | B59: 1 | C59: 55 | E59: 第55层 | G59: 1 | H59: 2055 | I59: 1403;1001 | K59: 1001 | L59: 1403 | M59: =ROUND(VLOOKUP(O59,[1]ResourceLevelConfig!$A:$C,3,FALSE)*0.01,0)*300 -> 183900 | N59: =IF(L59>1400,1,VLOOKUP(O59,[1]ResourceLevelConfig!$A:$E,L59-998,FALSE)*2) -> 1 | O59: 182 | Q59: 1001;1403 | R59: 183900;1 | T59: =VLOOKUP(K59,[2]ItemConfig!$A:$C,3,FALSE)&"×"&M59 -> 灵石×183900 | U59: =VLOOKUP(L59,[2]ItemConfig!$A:$C,3,FALSE)&"×"&N59 -> 上品增元丹×1
A60: 56 | B60: 1 | C60: 56 | E60: 第56层 | G60: 1 | H60: 2056 | I60: 1702;1001 | K60: 1001 | L60: 1702 | M60: =ROUND(VLOOKUP(O60,[1]ResourceLevelConfig!$A:$C,3,FALSE)*0.01,0)*300 -> 189600 | N60: =IF(L60>1400,1,VLOOKUP(O60,[1]ResourceLevelConfig!$A:$E,L60-998,FALSE)*2) -> 1 | O60: 185 | Q60: 1001;1702 | R60: 189600;1 | T60: =VLOOKUP(K60,[2]ItemConfig!$A:$C,3,FALSE)&"×"&M60 -> 灵石×189600 | U60: =VLOOKUP(L60,[2]ItemConfig!$A:$C,3,FALSE)&"×"&N60 -> 归识还元丹×1
A61: 57 | B61: 1 | C61: 57 | E61: 第57层 | G61: 1 | H61: 2057 | I61: 21012;1001 | K61: 1001 | L61: 21012 | M61: =ROUND(VLOOKUP(O61,[1]ResourceLevelConfig!$A:$C,3,FALSE)*0.01,0)*300 -> 195300 | N61: =IF(L61>1400,1,VLOOKUP(O61,[1]ResourceLevelConfig!$A:$E,L61-998,FALSE)*2) -> 1 | O61: 188 | Q61: 1001;21012 | R61: 195300;1 | T61: =VLOOKUP(K61,[2]ItemConfig!$A:$C,3,FALSE)&"×"&M61 -> 灵石×195300 | U61: =VLOOKUP(L61,[2]ItemConfig!$A:$C,3,FALSE)&"×"&N61 -> 紫色神识符×1
A62: 58 | B62: 1 | C62: 58 | E62: 第58层 | G62: 1 | H62: 2058 | I62: 1403;1001 | K62: 1001 | L62: 1403 | M62: =ROUND(VLOOKUP(O62,[1]ResourceLevelConfig!$A:$C,3,FALSE)*0.01,0)*300 -> 201300 | N62: =IF(L62>1400,1,VLOOKUP(O62,[1]ResourceLevelConfig!$A:$E,L62-998,FALSE)*2) -> 1 | O62: 191 | Q62: 1001;1403 | R62: 201300;1 | T62: =VLOOKUP(K62,[2]ItemConfig!$A:$C,3,FALSE)&"×"&M62 -> 灵石×201300 | U62: =VLOOKUP(L62,[2]ItemConfig!$A:$C,3,FALSE)&"×"&N62 -> 上品增元丹×1
A63: 59 | B63: 1 | C63: 59 | E63: 第59层 | G63: 1 | H63: 2059 | I63: 1702;1001 | K63: 1001 | L63: 1702 | M63: =ROUND(VLOOKUP(O63,[1]ResourceLevelConfig!$A:$C,3,FALSE)*0.01,0)*300 -> 207600 | N63: =IF(L63>1400,1,VLOOKUP(O63,[1]ResourceLevelConfig!$A:$E,L63-998,FALSE)*2) -> 1 | O63: 194 | Q63: 1001;1702 | R63: 207600;1 | T63: =VLOOKUP(K63,[2]ItemConfig!$A:$C,3,FALSE)&"×"&M63 -> 灵石×207600 | U63: =VLOOKUP(L63,[2]ItemConfig!$A:$C,3,FALSE)&"×"&N63 -> 归识还元丹×1
A64: 60 | B64: 1 | C64: 60 | E64: 第60层 | G64: 1 | H64: 2060 | I64: 21012;1001 | K64: 1001 | L64: 21012 | M64: =ROUND(VLOOKUP(O64,[1]ResourceLevelConfig!$A:$C,3,FALSE)*0.01,0)*300 -> 213900 | N64: =IF(L64>1400,1,VLOOKUP(O64,[1]ResourceLevelConfig!$A:$E,L64-998,FALSE)*2) -> 1 | O64: 197 | Q64: 1001;21012 | R64: 213900;1 | T64: =VLOOKUP(K64,[2]ItemConfig!$A:$C,3,FALSE)&"×"&M64 -> 灵石×213900 | U64: =VLOOKUP(L64,[2]ItemConfig!$A:$C,3,FALSE)&"×"&N64 -> 紫色神识符×1
A65: 61 | B65: 1 | C65: 61 | E65: 第61层 | G65: 1 | H65: 2061 | I65: 1404;1001 | K65: 1001 | L65: 1404 | M65: =ROUND(VLOOKUP(O65,[1]ResourceLevelConfig!$A:$C,3,FALSE)*0.01,0)*300 -> 220200 | N65: =IF(L65>1400,1,VLOOKUP(O65,[1]ResourceLevelConfig!$A:$E,L65-998,FALSE)*2) -> 1 | O65: 200 | Q65: 1001;1404 | R65: 220200;1 | T65: =VLOOKUP(K65,[2]ItemConfig!$A:$C,3,FALSE)&"×"&M65 -> 灵石×220200 | U65: =VLOOKUP(L65,[2]ItemConfig!$A:$C,3,FALSE)&"×"&N65 -> 极品增元丹×1
A66: 62 | B66: 1 | C66: 62 | E66: 第62层 | G66: 1 | H66: 2062 | I66: 1702;1001 | K66: 1001 | L66: 1702 | M66: =ROUND(VLOOKUP(O66,[1]ResourceLevelConfig!$A:$C,3,FALSE)*0.01,0)*300 -> 227100 | N66: =IF(L66>1400,1,VLOOKUP(O66,[1]ResourceLevelConfig!$A:$E,L66-998,FALSE)*2) -> 1 | O66: 203 | Q66: 1001;1702 | R66: 227100;1 | T66: =VLOOKUP(K66,[2]ItemConfig!$A:$C,3,FALSE)&"×"&M66 -> 灵石×227100 | U66: =VLOOKUP(L66,[2]ItemConfig!$A:$C,3,FALSE)&"×"&N66 -> 归识还元丹×1
A67: 63 | B67: 1 | C67: 63 | E67: 第63层 | G67: 1 | H67: 2063 | I67: 21012;1001 | K67: 1001 | L67: 21012 | M67: =ROUND(VLOOKUP(O67,[1]ResourceLevelConfig!$A:$C,3,FALSE)*0.01,0)*300 -> 234000 | N67: =IF(L67>1400,1,VLOOKUP(O67,[1]ResourceLevelConfig!$A:$E,L67-998,FALSE)*2) -> 1 | O67: 206 | Q67: 1001;21012 | R67: 234000;1 | T67: =VLOOKUP(K67,[2]ItemConfig!$A:$C,3,FALSE)&"×"&M67 -> 灵石×234000 | U67: =VLOOKUP(L67,[2]ItemConfig!$A:$C,3,FALSE)&"×"&N67 -> 紫色神识符×1
A68: 64 | B68: 1 | C68: 64 | E68: 第64层 | G68: 1 | H68: 2064 | I68: 1404;1001 | K68: 1001 | L68: 1404 | M68: =ROUND(VLOOKUP(O68,[1]ResourceLevelConfig!$A:$C,3,FALSE)*0.01,0)*300 -> 241200 | N68: =IF(L68>1400,1,VLOOKUP(O68,[1]ResourceLevelConfig!$A:$E,L68-998,FALSE)*2) -> 1 | O68: 209 | Q68: 1001;1404 | R68: 241200;1 | T68: =VLOOKUP(K68,[2]ItemConfig!$A:$C,3,FALSE)&"×"&M68 -> 灵石×241200 | U68: =VLOOKUP(L68,[2]ItemConfig!$A:$C,3,FALSE)&"×"&N68 -> 极品增元丹×1
A69: 65 | B69: 1 | C69: 65 | E69: 第65层 | G69: 1 | H69: 2065 | I69: 1702;1001 | K69: 1001 | L69: 1702 | M69: =ROUND(VLOOKUP(O69,[1]ResourceLevelConfig!$A:$C,3,FALSE)*0.01,0)*300 -> 248400 | N69: =IF(L69>1400,1,VLOOKUP(O69,[1]ResourceLevelConfig!$A:$E,L69-998,FALSE)*2) -> 1 | O69: 212 | Q69: 1001;1702 | R69: 248400;1 | T69: =VLOOKUP(K69,[2]ItemConfig!$A:$C,3,FALSE)&"×"&M69 -> 灵石×248400 | U69: =VLOOKUP(L69,[2]ItemConfig!$A:$C,3,FALSE)&"×"&N69 -> 归识还元丹×1
A70: 66 | B70: 1 | C70: 66 | E70: 第66层 | G70: 1 | H70: 2066 | I70: =CONCATENATE(L70,";",K70) -> 21012;1001 | K70: 1001 | L70: 21012 | M70: =ROUND(VLOOKUP(O70,[1]ResourceLevelConfig!$A:$C,3,FALSE)*0.01,0)*300 -> 255900 | N70: =IF(L70>1400,1,VLOOKUP(O70,[1]ResourceLevelConfig!$A:$E,L70-998,FALSE)*2) -> 1 | O70: 215 | Q70: =_xlfn.TEXTJOIN(";",1,K70:L70) -> 1001;21012 | R70: =_xlfn.TEXTJOIN(";",1,M70:N70) -> 255900;1 | T70: =VLOOKUP(K70,[2]ItemConfig!$A:$C,3,FALSE)&"×"&M70 -> 灵石×255900 | U70: =VLOOKUP(L70,[2]ItemConfig!$A:$C,3,FALSE)&"×"&N70 -> 紫色神识符×1
A71: 67 | B71: 1 | C71: 67 | E71: 第67层 | G71: 1 | H71: 2067 | I71: 1404;1001 | K71: 1001 | L71: 1404 | M71: =ROUND(VLOOKUP(O71,[1]ResourceLevelConfig!$A:$C,3,FALSE)*0.01,0)*300 -> 263700 | N71: =IF(L71>1400,1,VLOOKUP(O71,[1]ResourceLevelConfig!$A:$E,L71-998,FALSE)*2) -> 1 | O71: 218 | Q71: 1001;1404 | R71: 263700;1 | T71: =VLOOKUP(K71,[2]ItemConfig!$A:$C,3,FALSE)&"×"&M71 -> 灵石×263700 | U71: =VLOOKUP(L71,[2]ItemConfig!$A:$C,3,FALSE)&"×"&N71 -> 极品增元丹×1
A72: 68 | B72: 1 | C72: 68 | E72: 第68层 | G72: 1 | H72: 2068 | I72: 1702;1001 | K72: 1001 | L72: 1702 | M72: =ROUND(VLOOKUP(O72,[1]ResourceLevelConfig!$A:$C,3,FALSE)*0.01,0)*300 -> 271800 | N72: =IF(L72>1400,1,VLOOKUP(O72,[1]ResourceLevelConfig!$A:$E,L72-998,FALSE)*2) -> 1 | O72: 221 | Q72: 1001;1702 | R72: 271800;1 | T72: =VLOOKUP(K72,[2]ItemConfig!$A:$C,3,FALSE)&"×"&M72 -> 灵石×271800 | U72: =VLOOKUP(L72,[2]ItemConfig!$A:$C,3,FALSE)&"×"&N72 -> 归识还元丹×1
A73: 69 | B73: 1 | C73: 69 | E73: 第69层 | G73: 1 | H73: 2069 | I73: 21012;1001 | K73: 1001 | L73: 21012 | M73: =ROUND(VLOOKUP(O73,[1]ResourceLevelConfig!$A:$C,3,FALSE)*0.01,0)*300 -> 280200 | N73: =IF(L73>1400,1,VLOOKUP(O73,[1]ResourceLevelConfig!$A:$E,L73-998,FALSE)*2) -> 1 | O73: 224 | Q73: 1001;21012 | R73: 280200;1 | T73: =VLOOKUP(K73,[2]ItemConfig!$A:$C,3,FALSE)&"×"&M73 -> 灵石×280200 | U73: =VLOOKUP(L73,[2]ItemConfig!$A:$C,3,FALSE)&"×"&N73 -> 紫色神识符×1
A74: 70 | B74: 1 | C74: 70 | E74: 第70层 | G74: 1 | H74: 2070 | I74: 1404;1001 | K74: 1001 | L74: 1404 | M74: =ROUND(VLOOKUP(O74,[1]ResourceLevelConfig!$A:$C,3,FALSE)*0.01,0)*300 -> 288600 | N74: =IF(L74>1400,1,VLOOKUP(O74,[1]ResourceLevelConfig!$A:$E,L74-998,FALSE)*2) -> 1 | O74: 227 | Q74: 1001;1404 | R74: 288600;1 | T74: =VLOOKUP(K74,[2]ItemConfig!$A:$C,3,FALSE)&"×"&M74 -> 灵石×288600 | U74: =VLOOKUP(L74,[2]ItemConfig!$A:$C,3,FALSE)&"×"&N74 -> 极品增元丹×1
A75: 71 | B75: 1 | C75: 71 | E75: 第71层 | G75: 1 | H75: 2071 | I75: 1702;1001 | K75: 1001 | L75: 1702 | M75: =ROUND(VLOOKUP(O75,[1]ResourceLevelConfig!$A:$C,3,FALSE)*0.01,0)*300 -> 297600 | N75: =IF(L75>1400,1,VLOOKUP(O75,[1]ResourceLevelConfig!$A:$E,L75-998,FALSE)*2) -> 1 | O75: 230 | Q75: 1001;1702 | R75: 297600;1 | T75: =VLOOKUP(K75,[2]ItemConfig!$A:$C,3,FALSE)&"×"&M75 -> 灵石×297600 | U75: =VLOOKUP(L75,[2]ItemConfig!$A:$C,3,FALSE)&"×"&N75 -> 归识还元丹×1
A76: 72 | B76: 1 | C76: 72 | E76: 第72层 | G76: 1 | H76: 2072 | I76: 21012;1001 | K76: 1001 | L76: 21012 | M76: =ROUND(VLOOKUP(O76,[1]ResourceLevelConfig!$A:$C,3,FALSE)*0.01,0)*300 -> 306600 | N76: =IF(L76>1400,1,VLOOKUP(O76,[1]ResourceLevelConfig!$A:$E,L76-998,FALSE)*2) -> 1 | O76: 233 | Q76: 1001;21012 | R76: 306600;1 | T76: =VLOOKUP(K76,[2]ItemConfig!$A:$C,3,FALSE)&"×"&M76 -> 灵石×306600 | U76: =VLOOKUP(L76,[2]ItemConfig!$A:$C,3,FALSE)&"×"&N76 -> 紫色神识符×1
A77: 73 | B77: 1 | C77: 73 | E77: 第73层 | G77: 1 | H77: 2073 | I77: 1404;1001 | K77: 1001 | L77: 1404 | M77: =ROUND(VLOOKUP(O77,[1]ResourceLevelConfig!$A:$C,3,FALSE)*0.01,0)*300 -> 315900 | N77: =IF(L77>1400,1,VLOOKUP(O77,[1]ResourceLevelConfig!$A:$E,L77-998,FALSE)*2) -> 1 | O77: 236 | Q77: 1001;1404 | R77: 315900;1 | T77: =VLOOKUP(K77,[2]ItemConfig!$A:$C,3,FALSE)&"×"&M77 -> 灵石×315900 | U77: =VLOOKUP(L77,[2]ItemConfig!$A:$C,3,FALSE)&"×"&N77 -> 极品增元丹×1
A78: 74 | B78: 1 | C78: 74 | E78: 第74层 | G78: 1 | H78: 2074 | I78: 1702;1001 | K78: 1001 | L78: 1702 | M78: =ROUND(VLOOKUP(O78,[1]ResourceLevelConfig!$A:$C,3,FALSE)*0.01,0)*300 -> 325500 | N78: =IF(L78>1400,1,VLOOKUP(O78,[1]ResourceLevelConfig!$A:$E,L78-998,FALSE)*2) -> 1 | O78: 239 | Q78: 1001;1702 | R78: 325500;1 | T78: =VLOOKUP(K78,[2]ItemConfig!$A:$C,3,FALSE)&"×"&M78 -> 灵石×325500 | U78: =VLOOKUP(L78,[2]ItemConfig!$A:$C,3,FALSE)&"×"&N78 -> 归识还元丹×1
A79: 75 | B79: 1 | C79: 75 | E79: 第75层 | G79: 1 | H79: 2075 | I79: 21012;1001 | K79: 1001 | L79: 21012 | M79: =ROUND(VLOOKUP(O79,[1]ResourceLevelConfig!$A:$C,3,FALSE)*0.01,0)*300 -> 335700 | N79: =IF(L79>1400,1,VLOOKUP(O79,[1]ResourceLevelConfig!$A:$E,L79-998,FALSE)*2) -> 1 | O79: 242 | Q79: 1001;21012 | R79: 335700;1 | T79: =VLOOKUP(K79,[2]ItemConfig!$A:$C,3,FALSE)&"×"&M79 -> 灵石×335700 | U79: =VLOOKUP(L79,[2]ItemConfig!$A:$C,3,FALSE)&"×"&N79 -> 紫色神识符×1
A80: 76 | B80: 1 | C80: 76 | E80: 第76层 | G80: 1 | H80: 2076 | I80: 1404;1001 | K80: 1001 | L80: 1404 | M80: =ROUND(VLOOKUP(O80,[1]ResourceLevelConfig!$A:$C,3,FALSE)*0.01,0)*300 -> 345900 | N80: =IF(L80>1400,1,VLOOKUP(O80,[1]ResourceLevelConfig!$A:$E,L80-998,FALSE)*2) -> 1 | O80: 245 | Q80: 1001;1404 | R80: 345900;1 | T80: =VLOOKUP(K80,[2]ItemConfig!$A:$C,3,FALSE)&"×"&M80 -> 灵石×345900 | U80: =VLOOKUP(L80,[2]ItemConfig!$A:$C,3,FALSE)&"×"&N80 -> 极品增元丹×1
A81: 77 | B81: 1 | C81: 77 | E81: 第77层 | G81: 1 | H81: 2077 | I81: 1702;1001 | K81: 1001 | L81: 1702 | M81: =ROUND(VLOOKUP(O81,[1]ResourceLevelConfig!$A:$C,3,FALSE)*0.01,0)*300 -> 356400 | N81: =IF(L81>1400,1,VLOOKUP(O81,[1]ResourceLevelConfig!$A:$E,L81-998,FALSE)*2) -> 1 | O81: 248 | Q81: 1001;1702 | R81: 356400;1 | T81: =VLOOKUP(K81,[2]ItemConfig!$A:$C,3,FALSE)&"×"&M81 -> 灵石×356400 | U81: =VLOOKUP(L81,[2]ItemConfig!$A:$C,3,FALSE)&"×"&N81 -> 归识还元丹×1
A82: 78 | B82: 1 | C82: 78 | E82: 第78层 | G82: 1 | H82: 2078 | I82: 21012;1001 | K82: 1001 | L82: 21012 | M82: =ROUND(VLOOKUP(O82,[1]ResourceLevelConfig!$A:$C,3,FALSE)*0.01,0)*300 -> 367200 | N82: =IF(L82>1400,1,VLOOKUP(O82,[1]ResourceLevelConfig!$A:$E,L82-998,FALSE)*2) -> 1 | O82: 251 | Q82: 1001;21012 | R82: 367200;1 | T82: =VLOOKUP(K82,[2]ItemConfig!$A:$C,3,FALSE)&"×"&M82 -> 灵石×367200 | U82: =VLOOKUP(L82,[2]ItemConfig!$A:$C,3,FALSE)&"×"&N82 -> 紫色神识符×1
A83: 79 | B83: 1 | C83: 79 | E83: 第79层 | G83: 1 | H83: 2079 | I83: 1404;1001 | K83: 1001 | L83: 1404 | M83: =ROUND(VLOOKUP(O83,[1]ResourceLevelConfig!$A:$C,3,FALSE)*0.01,0)*300 -> 378300 | N83: =IF(L83>1400,1,VLOOKUP(O83,[1]ResourceLevelConfig!$A:$E,L83-998,FALSE)*2) -> 1 | O83: 254 | Q83: 1001;1404 | R83: 378300;1 | T83: =VLOOKUP(K83,[2]ItemConfig!$A:$C,3,FALSE)&"×"&M83 -> 灵石×378300 | U83: =VLOOKUP(L83,[2]ItemConfig!$A:$C,3,FALSE)&"×"&N83 -> 极品增元丹×1
A84: 80 | B84: 1 | C84: 80 | E84: 第80层 | G84: 1 | H84: 2080 | I84: 1702;1001 | K84: 1001 | L84: 1702 | M84: =ROUND(VLOOKUP(O84,[1]ResourceLevelConfig!$A:$C,3,FALSE)*0.01,0)*300 -> 390000 | N84: =IF(L84>1400,1,VLOOKUP(O84,[1]ResourceLevelConfig!$A:$E,L84-998,FALSE)*2) -> 1 | O84: 257 | Q84: 1001;1702 | R84: 390000;1 | T84: =VLOOKUP(K84,[2]ItemConfig!$A:$C,3,FALSE)&"×"&M84 -> 灵石×390000 | U84: =VLOOKUP(L84,[2]ItemConfig!$A:$C,3,FALSE)&"×"&N84 -> 归识还元丹×1
A85: 81 | B85: 1 | C85: 81 | E85: 第81层 | G85: 1 | H85: 2081 | I85: 21012;1001 | K85: 1001 | L85: 21012 | M85: =ROUND(VLOOKUP(O85,[1]ResourceLevelConfig!$A:$C,3,FALSE)*0.01,0)*300 -> 402000 | N85: =IF(L85>1400,1,VLOOKUP(O85,[1]ResourceLevelConfig!$A:$E,L85-998,FALSE)*2) -> 1 | O85: 260 | Q85: 1001;21012 | R85: 402000;1 | T85: =VLOOKUP(K85,[2]ItemConfig!$A:$C,3,FALSE)&"×"&M85 -> 灵石×402000 | U85: =VLOOKUP(L85,[2]ItemConfig!$A:$C,3,FALSE)&"×"&N85 -> 紫色神识符×1
A86: 82 | B86: 1 | C86: 82 | E86: 第82层 | G86: 1 | H86: 2082 | I86: 1404;1001 | K86: 1001 | L86: 1404 | M86: =ROUND(VLOOKUP(O86,[1]ResourceLevelConfig!$A:$C,3,FALSE)*0.01,0)*300 -> 414000 | N86: =IF(L86>1400,1,VLOOKUP(O86,[1]ResourceLevelConfig!$A:$E,L86-998,FALSE)*2) -> 1 | O86: 263 | Q86: 1001;1404 | R86: 414000;1 | T86: =VLOOKUP(K86,[2]ItemConfig!$A:$C,3,FALSE)&"×"&M86 -> 灵石×414000 | U86: =VLOOKUP(L86,[2]ItemConfig!$A:$C,3,FALSE)&"×"&N86 -> 极品增元丹×1
A87: 83 | B87: 1 | C87: 83 | E87: 第83层 | G87: 1 | H87: 2083 | I87: 1702;1001 | K87: 1001 | L87: 1702 | M87: =ROUND(VLOOKUP(O87,[1]ResourceLevelConfig!$A:$C,3,FALSE)*0.01,0)*300 -> 426900 | N87: =IF(L87>1400,1,VLOOKUP(O87,[1]ResourceLevelConfig!$A:$E,L87-998,FALSE)*2) -> 1 | O87: 266 | Q87: 1001;1702 | R87: 426900;1 | T87: =VLOOKUP(K87,[2]ItemConfig!$A:$C,3,FALSE)&"×"&M87 -> 灵石×426900 | U87: =VLOOKUP(L87,[2]ItemConfig!$A:$C,3,FALSE)&"×"&N87 -> 归识还元丹×1
A88: 84 | B88: 1 | C88: 84 | E88: 第84层 | G88: 1 | H88: 2084 | I88: 21012;1001 | K88: 1001 | L88: 21012 | M88: =ROUND(VLOOKUP(O88,[1]ResourceLevelConfig!$A:$C,3,FALSE)*0.01,0)*300 -> 435300 | N88: =IF(L88>1400,1,VLOOKUP(O88,[1]ResourceLevelConfig!$A:$E,L88-998,FALSE)*2) -> 1 | O88: 268 | Q88: 1001;21012 | R88: 435300;1 | T88: =VLOOKUP(K88,[2]ItemConfig!$A:$C,3,FALSE)&"×"&M88 -> 灵石×435300 | U88: =VLOOKUP(L88,[2]ItemConfig!$A:$C,3,FALSE)&"×"&N88 -> 紫色神识符×1
A89: 85 | B89: 1 | C89: 85 | E89: 第85层 | G89: 1 | H89: 2085 | I89: 1404;1001 | K89: 1001 | L89: 1404 | M89: =ROUND(VLOOKUP(O89,[1]ResourceLevelConfig!$A:$C,3,FALSE)*0.01,0)*300 -> 444300 | N89: =IF(L89>1400,1,VLOOKUP(O89,[1]ResourceLevelConfig!$A:$E,L89-998,FALSE)*2) -> 1 | O89: 270 | Q89: 1001;1404 | R89: 444300;1 | T89: =VLOOKUP(K89,[2]ItemConfig!$A:$C,3,FALSE)&"×"&M89 -> 灵石×444300 | U89: =VLOOKUP(L89,[2]ItemConfig!$A:$C,3,FALSE)&"×"&N89 -> 极品增元丹×1
A90: 86 | B90: 1 | C90: 86 | E90: 第86层 | G90: 1 | H90: 2086 | I90: 1702;1001 | K90: 1001 | L90: 1702 | M90: =ROUND(VLOOKUP(O90,[1]ResourceLevelConfig!$A:$C,3,FALSE)*0.01,0)*300 -> 453300 | N90: =IF(L90>1400,1,VLOOKUP(O90,[1]ResourceLevelConfig!$A:$E,L90-998,FALSE)*2) -> 1 | O90: 272 | Q90: 1001;1702 | R90: 453300;1 | T90: =VLOOKUP(K90,[2]ItemConfig!$A:$C,3,FALSE)&"×"&M90 -> 灵石×453300 | U90: =VLOOKUP(L90,[2]ItemConfig!$A:$C,3,FALSE)&"×"&N90 -> 归识还元丹×1
A91: 87 | B91: 1 | C91: 87 | E91: 第87层 | G91: 1 | H91: 2087 | I91: 21012;1001 | K91: 1001 | L91: 21012 | M91: =ROUND(VLOOKUP(O91,[1]ResourceLevelConfig!$A:$C,3,FALSE)*0.01,0)*300 -> 462300 | N91: =IF(L91>1400,1,VLOOKUP(O91,[1]ResourceLevelConfig!$A:$E,L91-998,FALSE)*2) -> 1 | O91: 274 | Q91: 1001;21012 | R91: 462300;1 | T91: =VLOOKUP(K91,[2]ItemConfig!$A:$C,3,FALSE)&"×"&M91 -> 灵石×462300 | U91: =VLOOKUP(L91,[2]ItemConfig!$A:$C,3,FALSE)&"×"&N91 -> 紫色神识符×1
A92: 88 | B92: 1 | C92: 88 | E92: 第88层 | G92: 1 | H92: 2088 | I92: 1404;1001 | K92: 1001 | L92: 1404 | M92: =ROUND(VLOOKUP(O92,[1]ResourceLevelConfig!$A:$C,3,FALSE)*0.01,0)*300 -> 471900 | N92: =IF(L92>1400,1,VLOOKUP(O92,[1]ResourceLevelConfig!$A:$E,L92-998,FALSE)*2) -> 1 | O92: 276 | Q92: 1001;1404 | R92: 471900;1 | T92: =VLOOKUP(K92,[2]ItemConfig!$A:$C,3,FALSE)&"×"&M92 -> 灵石×471900 | U92: =VLOOKUP(L92,[2]ItemConfig!$A:$C,3,FALSE)&"×"&N92 -> 极品增元丹×1
A93: 89 | B93: 1 | C93: 89 | E93: 第89层 | G93: 1 | H93: 2089 | I93: 1702;1001 | K93: 1001 | L93: 1702 | M93: =ROUND(VLOOKUP(O93,[1]ResourceLevelConfig!$A:$C,3,FALSE)*0.01,0)*300 -> 481200 | N93: =IF(L93>1400,1,VLOOKUP(O93,[1]ResourceLevelConfig!$A:$E,L93-998,FALSE)*2) -> 1 | O93: 278 | Q93: 1001;1702 | R93: 481200;1 | T93: =VLOOKUP(K93,[2]ItemConfig!$A:$C,3,FALSE)&"×"&M93 -> 灵石×481200 | U93: =VLOOKUP(L93,[2]ItemConfig!$A:$C,3,FALSE)&"×"&N93 -> 归识还元丹×1
A94: 90 | B94: 1 | C94: 90 | E94: 第90层 | G94: 1 | H94: 2090 | I94: 21012;1001 | K94: 1001 | L94: 21012 | M94: =ROUND(VLOOKUP(O94,[1]ResourceLevelConfig!$A:$C,3,FALSE)*0.01,0)*300 -> 491100 | N94: =IF(L94>1400,1,VLOOKUP(O94,[1]ResourceLevelConfig!$A:$E,L94-998,FALSE)*2) -> 1 | O94: 280 | Q94: 1001;21012 | R94: 491100;1 | T94: =VLOOKUP(K94,[2]ItemConfig!$A:$C,3,FALSE)&"×"&M94 -> 灵石×491100 | U94: =VLOOKUP(L94,[2]ItemConfig!$A:$C,3,FALSE)&"×"&N94 -> 紫色神识符×1
A95: 91 | B95: 1 | C95: 91 | E95: 第91层 | G95: 1 | H95: 2091 | I95: 1404;1001 | K95: 1001 | L95: 1404 | M95: =ROUND(VLOOKUP(O95,[1]ResourceLevelConfig!$A:$C,3,FALSE)*0.01,0)*300 -> 501000 | N95: =IF(L95>1400,1,VLOOKUP(O95,[1]ResourceLevelConfig!$A:$E,L95-998,FALSE)*2) -> 1 | O95: 282 | Q95: 1001;1404 | R95: 501000;1 | T95: =VLOOKUP(K95,[2]ItemConfig!$A:$C,3,FALSE)&"×"&M95 -> 灵石×501000 | U95: =VLOOKUP(L95,[2]ItemConfig!$A:$C,3,FALSE)&"×"&N95 -> 极品增元丹×1
A96: 92 | B96: 1 | C96: 92 | E96: 第92层 | G96: 1 | H96: 2092 | I96: 1702;1001 | K96: 1001 | L96: 1702 | M96: =ROUND(VLOOKUP(O96,[1]ResourceLevelConfig!$A:$C,3,FALSE)*0.01,0)*300 -> 511200 | N96: =IF(L96>1400,1,VLOOKUP(O96,[1]ResourceLevelConfig!$A:$E,L96-998,FALSE)*2) -> 1 | O96: 284 | Q96: 1001;1702 | R96: 511200;1 | T96: =VLOOKUP(K96,[2]ItemConfig!$A:$C,3,FALSE)&"×"&M96 -> 灵石×511200 | U96: =VLOOKUP(L96,[2]ItemConfig!$A:$C,3,FALSE)&"×"&N96 -> 归识还元丹×1
A97: 93 | B97: 1 | C97: 93 | E97: 第93层 | G97: 1 | H97: 2093 | I97: 21012;1001 | K97: 1001 | L97: 21012 | M97: =ROUND(VLOOKUP(O97,[1]ResourceLevelConfig!$A:$C,3,FALSE)*0.01,0)*300 -> 521400 | N97: =IF(L97>1400,1,VLOOKUP(O97,[1]ResourceLevelConfig!$A:$E,L97-998,FALSE)*2) -> 1 | O97: 286 | Q97: 1001;21012 | R97: 521400;1 | T97: =VLOOKUP(K97,[2]ItemConfig!$A:$C,3,FALSE)&"×"&M97 -> 灵石×521400 | U97: =VLOOKUP(L97,[2]ItemConfig!$A:$C,3,FALSE)&"×"&N97 -> 紫色神识符×1
A98: 94 | B98: 1 | C98: 94 | E98: 第94层 | G98: 1 | H98: 2094 | I98: 1404;1001 | K98: 1001 | L98: 1404 | M98: =ROUND(VLOOKUP(O98,[1]ResourceLevelConfig!$A:$C,3,FALSE)*0.01,0)*300 -> 531900 | N98: =IF(L98>1400,1,VLOOKUP(O98,[1]ResourceLevelConfig!$A:$E,L98-998,FALSE)*2) -> 1 | O98: 288 | Q98: 1001;1404 | R98: 531900;1 | T98: =VLOOKUP(K98,[2]ItemConfig!$A:$C,3,FALSE)&"×"&M98 -> 灵石×531900 | U98: =VLOOKUP(L98,[2]ItemConfig!$A:$C,3,FALSE)&"×"&N98 -> 极品增元丹×1
A99: 95 | B99: 1 | C99: 95 | E99: 第95层 | G99: 1 | H99: 2095 | I99: 1702;1001 | K99: 1001 | L99: 1702 | M99: =ROUND(VLOOKUP(O99,[1]ResourceLevelConfig!$A:$C,3,FALSE)*0.01,0)*300 -> 542700 | N99: =IF(L99>1400,1,VLOOKUP(O99,[1]ResourceLevelConfig!$A:$E,L99-998,FALSE)*2) -> 1 | O99: 290 | Q99: 1001;1702 | R99: 542700;1 | T99: =VLOOKUP(K99,[2]ItemConfig!$A:$C,3,FALSE)&"×"&M99 -> 灵石×542700 | U99: =VLOOKUP(L99,[2]ItemConfig!$A:$C,3,FALSE)&"×"&N99 -> 归识还元丹×1
A100: 96 | B100: 1 | C100: 96 | E100: 第96层 | G100: 1 | H100: 2096 | I100: 21012;1001 | K100: 1001 | L100: 21012 | M100: =ROUND(VLOOKUP(O100,[1]ResourceLevelConfig!$A:$C,3,FALSE)*0.01,0)*300 -> 553800 | N100: =IF(L100>1400,1,VLOOKUP(O100,[1]ResourceLevelConfig!$A:$E,L100-998,FALSE)*2) -> 1 | O100: 292 | Q100: 1001;21012 | R100: 553800;1 | T100: =VLOOKUP(K100,[2]ItemConfig!$A:$C,3,FALSE)&"×"&M100 -> 灵石×553800 | U100: =VLOOKUP(L100,[2]ItemConfig!$A:$C,3,FALSE)&"×"&N100 -> 紫色神识符×1
A101: 97 | B101: 1 | C101: 97 | E101: 第97层 | G101: 1 | H101: 2097 | I101: 1404;1001 | K101: 1001 | L101: 1404 | M101: =ROUND(VLOOKUP(O101,[1]ResourceLevelConfig!$A:$C,3,FALSE)*0.01,0)*300 -> 564900 | N101: =IF(L101>1400,1,VLOOKUP(O101,[1]ResourceLevelConfig!$A:$E,L101-998,FALSE)*2) -> 1 | O101: 294 | Q101: 1001;1404 | R101: 564900;1 | T101: =VLOOKUP(K101,[2]ItemConfig!$A:$C,3,FALSE)&"×"&M101 -> 灵石×564900 | U101: =VLOOKUP(L101,[2]ItemConfig!$A:$C,3,FALSE)&"×"&N101 -> 极品增元丹×1
A102: 98 | B102: 1 | C102: 98 | E102: 第98层 | G102: 1 | H102: 2098 | I102: 1702;1001 | K102: 1001 | L102: 1702 | M102: =ROUND(VLOOKUP(O102,[1]ResourceLevelConfig!$A:$C,3,FALSE)*0.01,0)*300 -> 576300 | N102: =IF(L102>1400,1,VLOOKUP(O102,[1]ResourceLevelConfig!$A:$E,L102-998,FALSE)*2) -> 1 | O102: 296 | Q102: 1001;1702 | R102: 576300;1 | T102: =VLOOKUP(K102,[2]ItemConfig!$A:$C,3,FALSE)&"×"&M102 -> 灵石×576300 | U102: =VLOOKUP(L102,[2]ItemConfig!$A:$C,3,FALSE)&"×"&N102 -> 归识还元丹×1
A103: 99 | B103: 1 | C103: 99 | E103: 第99层 | G103: 1 | H103: 2099 | I103: 21012;1001 | K103: 1001 | L103: 21012 | M103: =ROUND(VLOOKUP(O103,[1]ResourceLevelConfig!$A:$C,3,FALSE)*0.01,0)*300 -> 588000 | N103: =IF(L103>1400,1,VLOOKUP(O103,[1]ResourceLevelConfig!$A:$E,L103-998,FALSE)*2) -> 1 | O103: 298 | Q103: 1001;21012 | R103: 588000;1 | T103: =VLOOKUP(K103,[2]ItemConfig!$A:$C,3,FALSE)&"×"&M103 -> 灵石×588000 | U103: =VLOOKUP(L103,[2]ItemConfig!$A:$C,3,FALSE)&"×"&N103 -> 紫色神识符×1
A104: 100 | B104: 1 | C104: 100 | E104: 第100层 | G104: 1 | H104: 2100 | I104: 1404;1001 | K104: 1001 | L104: 1404 | M104: =ROUND(VLOOKUP(O104,[1]ResourceLevelConfig!$A:$C,3,FALSE)*0.01,0)*300 -> 600000 | N104: =IF(L104>1400,1,VLOOKUP(O104,[1]ResourceLevelConfig!$A:$E,L104-998,FALSE)*2) -> 1 | O104: 300 | Q104: 1001;1404 | R104: 600000;1 | T104: =VLOOKUP(K104,[2]ItemConfig!$A:$C,3,FALSE)&"×"&M104 -> 灵石×600000 | U104: =VLOOKUP(L104,[2]ItemConfig!$A:$C,3,FALSE)&"×"&N104 -> 极品增元丹×1
